{"text_format":"3","workbook":"xlsx","n_sheets":1,"sheets":["表1"],"not_rendered":{"defined_names":3},"read":"whole","date_system":"1900"}

{"sheet":"表1","index":0,"n_rows":50,"n_cols":8,"rows_kept":50,"merged":[[0,0,0,2],[1,0,1,6],[2,0,2,6],[3,0,4,0],[3,1,4,1],[3,2,4,2],[3,3,4,3],[3,4,4,4],[3,5,4,5],[3,6,4,6],[3,7,4,7],[5,1,25,1],[5,7,25,7],[26,1,27,1],[28,1,38,1],[28,7,37,7],[39,1,48,1],[39,7,48,7]]}
[]
["平陆运河集团有限公司2024年上半年公开招聘计划表"]
[]
["序号","单位名称","需求职位名称","需求\n人数","职位要求","工作地点","备注","联系方式"]
[]
[{"$f":"ROW()-5","v":1},"广西平陆运河建设有限公司","文秘岗",1,"1.35岁以下（1988年6月1日及以后出生）；\n2.中共党员；\n3.大学本科及以上学历，并获得相应学位证书；\n4.新闻、文秘、汉语言文学、政治学等相关专业毕业；\n5.具有3年以上行政、文秘相关工作经验；\n6.具有良好的文字功底、口头表达能力和逻辑思维能力；具有良好的团队合作精神及沟通协调能力。","广西钦州",null,"覃先生  0777-5115820，邮箱PLYHJSHR@163.com"]
[2,null,"人力资源岗",1,"1.35岁以下（1988年6月1日及以后出生）；\n2.中共党员；\n3.大学本科及以上学历，并获得相应学位证书；\n4.人力资源管理等相关专业毕业；\n5.具有3年以上人力资源管理相关工作经验；\n6.具有良好的文字功底、口头表达能力和逻辑思维能力；具有良好的团队合作精神及沟通协调能力。","广西钦州"]
[3,null,"纪检岗",1,"1.35岁以下（1988年6月1日及以后出生）；\n2.中共党员；\n3.大学本科及以上学历，并获得相应学位证书；\n4.新闻、文秘、汉语言文学、政治学等相关专业毕业；\n5.具有3年以上纪检监察相关工作经验；\n6.具有良好的文字功底、口头表达能力和逻辑思维能力；具有良好的团队合作精神及沟通协调能力。","广西钦州"]
[4,null,"宣传岗",1,"1.35岁以下（1988年6月1日及以后出生）；\n2.中共党员；\n3.大学本科及以上学历，并获得相应学位证书；\n4.新闻、文秘、汉语言文学、政治学等相关专业毕业；\n5.具有3年以上宣传相关工作经验；\n6.具有良好的文字功底、口头表达能力和逻辑思维能力；具有良好的团队合作精神及沟通协调能力。","广西钦州"]
[5,null,"外联岗",1,"1.2024年应届毕业生；\n2.中共党员；\n3.大学本科及以上学历，并获得相应学位证书；\n4.播音主持、编导、新闻等相关专业毕业；\n5.形象气质佳，亲和力强，具有良好的策划能力、口头表达能力和逻辑思维能力；具有较强的团队精神、沟通协调能力。","广西钦州"]
[6,null,"会计岗1\n（核算管理、基建会计）",1,"1.40岁以下(1983年6月1日及以后出生)；\n2.大学本科及以上学历，并获得相应学位证书；\n3.会计学、审计学、财务管理、财政学、金融学等财会相关专业毕业；\n4.具有中级会计师及以上职称；\n5.具有3年以上基础设施建设或施工财务管理经验，熟悉工程、征迁补偿等资金管理工作；\n6.具有良好的政治素质、职业素养及团队精神，能熟练使用office等各类办公软件及与业务相关专业软件。","广西钦州"]
[7,null,"会计岗2\n（核算管理、基建会计）",1,"1.30岁以下(1993年6月1日及以后出生)；\n2.大学本科及以上学历，并获得相应学位证书；\n3.会计学、审计学、财务管理、财政学、金融学等财会相关专业毕业；\n4.具有初级会计师及以上职称；\n5.具有良好的政治素质、职业素养及团队精神，能熟练使用office等各类办公软件及与业务相关专业软件。","广西钦州"]
[8,null,"出纳岗",1,"1.30岁以下(1993年6月1日及以后出生)；\n2.大学本科及以上学历，并获得相应学位证书；\n3.会计学、审计学、财务管理、财政学、金融学等财会相关专业毕业；\n4.熟悉office等各类办公软件及与业务相关专业软件；熟练掌握财务基础知识、国家财经政策和会计、税务法规；具有良好的沟通协调能力及团队协作精神。","广西钦州"]
[9,null,"审计岗",1,"1.35岁以下(1988年6月1日及以后出生)；\n2.大学本科及以上学历，并获得相应学位证书；\n3.财务、审计、经济等相关专业毕业；\n4.具有中级及以上职称；\n5.具有3年以上风险管理、内部控制或审计相关工作经验；\n6.熟悉国家会计、审计等法律法规，了解建设单位的经营活动、业务流程和内控管理；具有较强的沟通协调能力和文字写作能力。","广西钦州"]
[10,null,"法务岗",1,"1.35岁以下(1988年6月1日及以后出生)；\n2.大学本科及以上学历，并获得相应学位证书；\n3.法学相关专业毕业；\n4.具有法律职业资格A证；\n5.具有2年以上相关工作经验；\n6.熟悉建设工程有关的法律、法规、政策；具有良好的团队合作精神、沟通协调能力及文字表达能力。","广西钦州"]
[11,null,"合同管理岗",2,"1.40岁以下(1983年6月1日及以后出生)；\n2.大学本科及以上学历，并获得相应学位证书；\n3.工程等相关专业毕业；\n4.具有中级及以上职称；\n5.具有2年以上项目合同管理工作经验或施工现场管理经验；\n6.具有良好的团队合作精神、组织协调及现场管理能力。","广西钦州"]
[12,null,"材料管理岗",1,"1.40岁以下(1983年6月1日及以后出生)；\n2.大学本科及以上学历，并获得相应学位证书；\n3.工程、材料等相关专业毕业；\n4.具有中级及以上职称；\n5.具有3年以上项目合同、计量、材料管理工作经验或施工现场管理经验；\n6.具有良好的团队合作精神、组织协调及现场管理能力。","广西钦州"]
[13,null,"房建工程管理岗",1,"1.40岁以下（1983年6月1日及以后出生）；\n2.大学本科及以上学历，并获得相应学位证书；\n3.土木工程、房建等相关专业毕业；\n4.具有中级及以上职称；\n5.具有5年以上房建管理相关工作经验；\n6.熟悉相关政策、法规；具有良好的团队合作精神、组织协调及现场管理能力。","广西钦州"]
[14,null,"电气自动化管理岗",1,"1.40岁以下（1983年6月1日及以后出生）；\n2.大学本科及以上学历，并获得相应学位证书；\n3.电气工程及其自动化、电气工程与智能控制等电气相关专业毕业；\n4.具有中级及以上职称；\n5.具有5年以上相关工作经验；\n6.具有良好的团队合作精神、组织协调及现场管理能力。","广西钦州"]
[15,null,"金属结构工程管理岗",1,"1.45岁以下（1978年6月1日及以后出生）；\n2.大学本科及以上学历，并获得相应学位证书；\n3.金属材料工程、水运工程、建筑工程等相关专业毕业；\n4.具有中级及以上职称；\n5.具有5年以上金属结构管理工作经验；\n6.具有良好的团队合作精神、组织协调及现场管理能力。","广西钦州"]
[16,null,"档案管理岗",1,"1.40岁以下(1983年6月1日及以后出生)；\n2.大学本科及以上学历，并获得相应学位证书；\n3.工程等相关专业毕业；\n4.具有5年以上工程管理工作经验；\n5.熟悉相关政策、法规，具有一定的文字功底，具有良好的团队合作精神及沟通协调能力。","广西钦州"]
[17,null,"科技信息部副主任",1,"1.45岁以下(1978年6月1日及以后出生)；\n2.大学本科及以上学历，并获得相应学位证书；\n3.航道、水运、计算机、信息管理等相关专业毕业；\n4.具有高级及以上职称；\n5.具有10年以上工程建设数字化及信息化平台搭建、运营、管理经验；\n6.熟悉大数据、物联网、云计算等信息技术；熟悉相关政策、法规；具有良好的团队合作精神、组织协调及信息化管理能力；","广西钦州","按二级公司中层副职管理"]
[18,null,"信息管理岗",1,"1.35岁以下（1988年6月1日及以后出生）；\n2.大学本科及以上学历，并获得相应学位证书；\n3.航道、水运、计算机、信息管理等相关专业毕业；\n4.具有中级及以上职称；\n5.具有5年以上工程建设数字化及信息化平台搭建、运营、管理经验；\n6.熟悉数字孪生技术，熟悉相关政策、法规；具有良好的团队合作精神、组织协调及信息化管理能力；\n7.熟悉航道、水运相关行业的计算机类复合型人才优先。","广西钦州"]
[null,null,"电站运营岗",1,"1.35岁以下（1988年6月1日及以后出生）；\n2.大学本科及以上学历，并获得相应学位证书；\n3.电气、自动化、机械、能源动力类等相关专业毕业；\n4.具有中级及以上职称；\n5.具有2年以上电厂运行或管理相关工作经验；熟悉电力生产相关专业知识、技术标准和安全规程，熟练掌握运行、检修及调度规程和管理规范；\n6.熟练运用办公设备和办公软件，有较好的语言、文字表达能力，有良好团队协作精神。","广西钦州"]
[null,null,"电站运维岗",1,"1.35岁以下（1988年6月1日及以后出生）；\n2.大学本科及以上学历；\n3.电气、自动化、机械、能源动力类等相关专业毕业；\n4.具有高压电工证；\n5.具有2年以上电厂运行或检修维护相关工作经验；\n6.熟练运用办公设备和办公软件，有较好的语言、文字表达能力，愿意长期在电厂一线工作，有良好团队协作精神。","广西钦州"]
[{"$f":"ROW()-5","v":21},null,"小计",{"$f":"SUM(D6:D25)","v":21}]
[22,"广西平陆运河创业投资基金管理有限公司","投资部副部长",1,"1.40岁以下(1983年6月1日以后出生)；\n2.大学本科及以上学历，并获得相应学位证书；\n3.金融类、经济类、管理类等相关专业毕业；\n4.具有中级及以上职称或基金从业资格证；\n5.具有5年以上金融投融资、基金投资管理相关经验，2年以上部门副职工作经历；\n6.熟悉基金投资管理、金融投融资业务流程，具有较强的市场意识、资源整合能力、良好的沟通协调能力及团队合作精神。","广西钦州","按二级公司中层副职管理","李女士  18100778229，邮箱plyhjjgs@163.com"]
[23,null,"小计",{"$f":"SUM(D27:D27)","v":1}]
[24,"广西平陆运河实业发展有限公司"," 土地利用开发部\n副部长",1,"1.40岁及以下(1983年6月1日及以后出生)；\n2.大学本科及以上学历，并获得相应学位证书；\n3.工程造价、土地管理、土木工程、给排水工程、工程管理等相关专业；\n4.具有5年以上相关工作经验，1年以上工程管理部门副职工作经历；                                                       5.熟悉项目全过程工程造价、招投标管理，熟悉合同管理，具有较强的团队精神、沟通协调能力。","广西钦州","按二级公司中层副职管理","罗女士  0771-5630863，邮箱plyhsygszhb@163.com"]
[25,null,"文秘岗",1,"1.35岁以下(1988年6月1日及以后出生)；\n2.中共党员；\n3.大学本科及以上学历，并获得相应学位证书；\n4.政治、哲学、中文、新闻、公共管理等相关专业毕业；\n5.具有3年以上相关工作经验，具有行政、党务、纪检等复合型工作能力，具有较强的写作能力、沟通能力。","广西钦州"]
[26,null,"会计岗                 （资金管理）",1,"1.35岁以下(1988年6月1日及以后出生)；\n2.大学本科及以上学历，并获得相应学位证书；\n3.金融、经济、会计、财务管理等相关专业毕业；\n4.具有中级及以上职称；\n5.具有3年以上财务管理相关工作经验；\n6.熟悉Word、Excel日常办公软件及业务相关的专业软件，熟悉国家财经政策和相关法规，熟悉掌握财务相关业务知识，具有良好的团队合作精神及沟通协调能力。","广西钦州"]
[27,null,"综合安全岗",1,"1.40岁以下(1983年6月1日及以后出生)；\n2.大学本科及以上学历，并获得相应学位证书；\n3.工程管理、安全管理等相关专业毕业；\n4.具有3年及以上工程施工安全管理、道路运输安全、危险化学品生产或经营安全管理、电力工程施工或运营安全管理等相关工作经验，持有注册安全工程师证优先。","广西钦州"]
[28,null,"工程管理岗1",1,"1.40岁以下(1983年6月1日及以后出生)；\n2.大学本科及以上学历，并获得相应学位证书；\n3.工程造价、土木工程、给排水工程等相关专业；\n4.具有3年以上相关工作经验，全过程参与过1个以上投资不少于3千万的土建类、土地类或新能源工程项目；\n5.熟悉工程投资、预算、决算、招投标管理，熟悉工程质量、进度、安全管理；具有良好的团队合作精神及沟通协调能力。","广西钦州"]
[29,null,"信息管理岗",1,"1.35岁以下(1988年6月1日及以后出生)；\n2.大学本科及以上学历，并获得相应学位证书；\n3.计算机、信息管理、电子信息等相关专业毕业；\n4.具有中级及以上职称或者同等信息化资格证书；\n5.具有3年以上相关工作经验；\n6.具有顶层信息化建设相关工作经验，熟练运用项目管理、信息系统集成、软件开发管理等领域知识。","广西钦州"]
[30,null,"大数据管理岗",1,"1.35岁以下(1988年6月1日及以后出生)；\n2.大学本科及以上学历，并获得相应学位证书；\n3.计算机等相关专业毕业；\n4.具有3年以上相关工作经验；\n5.熟悉常用开源分布式系统以及MPP系统，能够独立排查及解决分布式系统的问题，精通多种数据分析框架和分析理论，具有丰富的数据分析方案输出经验；具有良好的逻辑思维、分析判断能力。","广西钦州"]
[31,null,"工程管理岗2",1,"1.2023年、2024年应届毕业生；\n2.大学本科学历，并获得相应学位证书；\n3.土木类、工程类等相关专业毕业；\n4.熟悉工程设计、管理流程，熟练使用CAD、天正等软件，具有较强的团队精神、沟通协调能力。","广西钦州"]
[32,null,"系统开发岗",1,"1.2023年、2024年应届毕业生；\n2.研究生及以上学历，并获得相应学位证书；\n3.计算机类等相关专业毕业；\n4.熟悉常用开源分布式系统、MPP系统，具有良好的团队合作精神及沟通协调能力。","广西钦州"]
[33,null,"机电工程岗",1,"1.2023年、2024年应届毕业生；\n2.研究生及以上学历，并获得相应学位证书；\n3.计算机类等相关专业毕业；\n4.熟悉计算机设备硬件管理、维护，熟练使用Word、Excel等办公软件，具有良好的团队合作精神及沟通协调能力。","广西钦州"]
[34,null,"小计",{"$f":"SUM(D29:D38)","v":10}]
[35,"广西平陆运河资源开发有限公司","党务宣教岗",1,"1.35岁以下（1988年6月1日及以后出生）；\n2.中共党员；\n3.大学本科及以上学历，并获得相应学位证书；\n4.新闻、中文、文秘、汉语言文学、政治学等相关专业毕业；\n5.具有5年以上党建、宣传、纪检相关工作经验；\n6.熟悉企业党建相关工作，具有较强的文字功底、沟通协调能力及团队合作精神。","广西钦州",null,"宋女士15107779506，邮箱plyhzygszhb@163.com"]
[36,null,"会计岗",1,"1.40岁以下(1983年6月1日及以后出生)；\n2.大学本科及以上学历，并获得相应学位证书；\n3.会计、审计、财务管理等财会相关专业毕业；\n4.具有会计师及以上职称；\n5.具有8年以上会计工作经验；\n6.熟悉资金管理、税务管理、总账管理等管理工作，熟练运用office等各类办公软件及业务相关专业软件，具备较强的财务分析能力、文字功底、沟通协调能力及团队合作精神。","广西钦州"]
[37,null,"审计岗",1,"1.35岁以下（1988年6月1日及以后出生）；                                  \n2.大学本科及以上学历，并获得相应学位证书；\n3.财务管理、会计、审计、经济类等相关专业毕业；\n4.具有初级及以上职称； \n5.具有3年以上风险管理、内部控制或审计相关工作经验；\n6.熟悉国家法律法规、会计、审计相关准则及企业内部控制环节，具有良好的团队精神及沟通协调能力，文字功底扎实。","广西钦州"]
[38,null,"安全监督岗",1,"1.35岁以下（1988年6月1日及以后出生）；                                  \n2.大学本科及以上学历，并获得相应学位证书；\n3.安全工程、土木工程、工程管理等相关专业毕业； \n4.具有初级及以上职称；                     \n5.具有5年以上安全管理相关工作经验；\n6.熟悉国家安全管理相关法律、法规及相关技术规范，具有良好的团队合作精神、组织协调及现场管理能力，持有注册安全工程师证优先。","广西钦州"]
[39,null,"技术管理岗",1,"1.35岁以下（1988年6月1日及以后出生）；\n2.大学本科及以上学历，并获得相应学位证书；\n3.航道、水运工程等相关专业毕业；\n4.具有初级及以上职称；\n5.具有3年以上工程项目施工管理相关工作经验；\n6.熟悉相关政策、法规；具有较强的组织协调、现场管理能力和团队合作精神。","广西钦州"]
[40,null,"市场开发部副部长",1,"1.45岁以下（1978年6月1日及以后出生）；                                  \n2.大学本科及以上学历，并获得相应学位证书；\n3.市场营销、工商管理、工程类等相关专业毕业；\n4.具有中级及以上职称；\n5.具有10年及以上贸易、供应链业务、工程管理等相关工作经验，3年及以上部门副职工作经历；\n6.熟悉大宗物资相关购、销、运等业务流程，具有较强的市场意识、资源整合能力、沟通协调能力及团队合作精神。","广西钦州","按二级公司中层副职管理"]
[41,null,"材料物资岗",2,"1.35岁以下（1988年6月1日及以后出生）；                                  \n2.大学本科及以上学历，并获得相应学位证书；\n3.市场营销、工商管理、物流管理、供应链管理、工程类等相关专业毕业；\n4.具有3年及以上贸易、物流、供应链业务、工程管理等相关工作经验；\n5.熟悉大宗物资相关购、销、运等业务流程，具有较强的市场意识、资源整合能力、沟通协调能力，抗压能力强。","广西钦州"]
[42,null,"销售管理岗",1,"1.35岁以下（1988年6月1日及以后出生）；                                  \n2.大学本科及以上学历，并获得相应学位证书；\n3.市场营销、工商管理、物流管理、供应链管理、工程类等相关专业毕业；\n4.具有3年及以上大宗商品销售管理相关工作经验；\n5.熟悉商务谈判、物流运输、供应链管理及办公软件使用等；具有较强的沟通协调能力及流畅的语言表达能力，抗压能力强。","广西钦州"]
[43,null,"矿业公司\n会计岗",1,"1.35岁以下(1988年6月1日及以后出生)；\n2.大学本科及以上学历，并获得相应学位证书；\n3.会计、审计、财务管理等相关专业毕业；\n4.具有初级会计师及以上职称；\n5.具有5年及以上工业会计相关工作经验；\n6.熟悉企业会计准则、税收法规及账务处理流程，具有良好的团队合作精神及沟通协调能力。","广西钦州"]
[44,null,"小计",{"$f":"SUM(D40:D48)","v":10}]
[45,null,"合计",{"$f":"D26+D39+D49+D28","v":42}]